[Event "2nd Namma Bengaluru Open-A 2025"]
[Site "Bengaluru"]
[Date "2025.04.12"]
[Round "4.9"]
[White "Rajesh, V A V"]
[Black "Anuj Shrivatri"]
[Result "1-0"]
[Annotator "ChessBase"]
[ECO "E20"]
[WhiteElo "2331"]
[BlackElo "2400"]
[PlyCount "69"]
[EventDate "2025.04.10"]
[EventType "swiss"]
[EventCountry "IND"]
[SourceTitle "playchess.com"]
[Source "ChessBase"]
[SourceQuality "1"]
[TimeControl "5400+30"]

1. d4 {[%emt 0:01:17]} Nf6 {[%emt 0:00:54]} 2. c4 {[%emt 0:00:13]} e6 {[%emt 0:01:02]} 3. Nc3 {[%emt 0:00:21]} Bb4 {[%emt 0:00:09]} 4. f3 {[%emt 0:00:41]} c5 {[%emt 0:08:57]} 5. d5 {[%emt 0:00:56]} b5 {[%emt 0:00:06]} 6. e4 {[%emt 0:00:46]} d6 {[%emt 0:04:03]} 7. Bd2 {[%emt 0:00:56]} a6 {[%emt 0:01:01]} 8. a3 {[%emt 0:10:15]} Ba5 {[%emt 0:01:25]} 9. cxb5 {[%emt 0:02:43]} exd5 {[%emt 0:02:27]} 10. bxa6 {[%emt 0:08:59]} d4 {[%emt 0:06:29]} 11. Nb5 {[%emt 0:14:58]} Bxd2+ {[%emt 0:05:10]} 12. Qxd2 {[%emt 0:00:05]} O-O {[%emt 0:07:27]} 13. Rc1 {[%emt 0:05:02]} Bxa6 {[%emt 0:05:00]} 14. Nh3 {[%emt 0:00:43]} d5 {[%emt 0:13:33]} 15. Rxc5 {[%emt 0:07:00]} dxe4 {[%emt 0:05:26]} 16. Qxd4 {[%emt 0:05:56]} Nbd7 {[%emt 0:01:16]} 17. Rc3 {[%emt 0:03:03]} exf3 {[%emt 0:08:48]} 18. gxf3 {[%emt 0:01:25]} Rc8 {[%emt 0:13:00]} 19. Kf2 {[%emt 0:22:23]} Rxc3 {[%emt 0:04:50]} 20. bxc3 {[%emt 0:00:52]} Qb8 {[%emt 0:00:21]} 21. c4 {[%emt 0:00:29]} Bb7 {[%emt 0:02:43]} 22. Qd6 {[%emt 0:03:25]} Qa8 {[%emt 0:01:04]} 23. Be2 {[%emt 0:04:25]} Ng4+ {[%emt 0:00:17]} 24. Kg3 {[%emt 0:00:41]} Ndf6 {[%emt 0:00:01]} 25. Rg1 {[%emt 0:05:26]} Rd8 {[%emt 0:00:22]} 26. Qb6 {[%emt 0:00:00]} Nh6 {[%emt 0:04:58]} 27. Kf2 {[%emt 0:00:00]} Kh8 {[%emt 0:00:16]} 28. Rd1 {[%emt 0:00:12]} Re8 {[%emt 0:00:45]} 29. Ng5 {[%emt 0:00:22]} Qb8 {[%emt 0:02:25]} 30. Qc7 {[%emt 0:00:31]} Qa8 {[%emt 0:00:35]} 31. Nd6 {[%emt 0:00:51]} Qa7+ {[%emt 0:00:07]} 32. Kf1 {[%emt 0:00:28]} Nhg4 {[%emt 0:00:51]} 33. c5 {[%emt 0:00:46]} Ne3+ {[%emt 0:00:29]} 34. Kg1 {[%emt 0:00:12]} Ned5 {[%emt 0:00:10]} 35. Rxd5 {[%emt 0:00:19]} 1-0

[Event "2nd Namma Bengaluru Open-A 2025"]
[Site "Bengaluru"]
[Date "2025.04.12"]
[Round "4.10"]
[White "Iniyan, Pa"]
[Black "Bhoir Paras Dilip"]
[Result "1-0"]
[Annotator "ChessBase"]
[ECO "D30"]
[WhiteElo "2578"]
[BlackElo "2085"]
[PlyCount "101"]
[EventDate "2025.04.10"]
[EventType "swiss"]
[EventCountry "IND"]
[SourceTitle "playchess.com"]
[Source "ChessBase"]
[SourceQuality "1"]
[TimeControl "5400+30"]

1. d4 {[%emt 0:00:59]} d5 {[%emt 0:03:07]} 2. c4 {[%emt 0:00:09]} e6 {[%emt 0:00:16]} 3. Nf3 {[%emt 0:00:08]} Nf6 {[%emt 0:00:10]} 4. e3 {[%emt 0:00:06]} c6 {[%emt 0:00:21]} 5. Nbd2 {[%emt 0:00:07]} Nbd7 {[%emt 0:02:11]} 6. b3 {[%emt 0:00:10]} b6 {[%emt 0:04:19]} 7. Bb2 {[%emt 0:00:21]} Bb7 {[%emt 0:01:09]} 8. Bd3 {[%emt 0:00:08]} Qc7 {[%emt 0:03:38]} 9. O-O {[%emt 0:00:15]} Bd6 {[%emt 0:00:29]} 10. Re1 {[%emt 0:00:07]} O-O {[%emt 0:01:02]} 11. e4 {[%emt 0:00:29]} dxe4 {[%emt 0:07:32]} 12. Nxe4 {[%emt 0:00:06]} Nxe4 {[%emt 0:00:27]} 13. Rxe4 {[%emt 0:00:07]} Rae8 {[%emt 0:06:43]} 14. Qe2 {[%emt 0:10:24]} c5 {[%emt 0:09:26]} 15. d5 {[%emt 0:10:39]} e5 {[%emt 0:01:05]} 16. Rh4 {[%emt 0:00:05]} f5 {[%emt 0:04:04]} 17. Ng5 {[%emt 0:00:07]} Qd8 {[%emt 0:02:52]} 18. f4 {[%emt 0:00:07]} exf4 {[%emt 0:09:57]} 19. Qh5 {[%emt 0:00:37]} h6 {[%emt 0:00:22]} 20. Ne6 {[%emt 0:17:33]} Rxe6 {[%emt 0:02:20]} 21. dxe6 {[%emt 0:00:07]} Be5 {[%emt 0:00:39]} 22. Re1 {[%emt 0:00:08]} Nf6 {[%emt 0:08:04]} 23. e7 {[%emt 0:00:06]} Bd4+ {[%emt 0:10:27]} 24. Kf1 {[%emt 0:01:37]} Nxh5 {[%emt 0:01:28]} 25. exd8=Q {[%emt 0:00:16]} Rxd8 {[%emt 0:00:07]} 26. Bxd4 {[%emt 0:03:48]} Rxd4 {[%emt 0:00:06]} 27. Rxh5 {[%emt 0:01:54]} Rxd3 {[%emt 0:00:04]} 28. Rxf5 {[%emt 0:00:07]} Rd4 {[%emt 0:00:30]} 29. Re7 {[%emt 0:00:50]} Be4 {[%emt 0:00:09]} 30. Rff7 {[%emt 0:00:06]} g5 {[%emt 0:03:16]} 31. Rg7+ {[%emt 0:06:23]} Kf8 {[%emt 0:02:03]} 32. Ref7+ {[%emt 0:00:09]} Ke8 {[%emt 0:00:12]} 33. Rxa7 {[%emt 0:00:12]} Kf8 {[%emt 0:00:11]} 34. Rgd7 {[%emt 0:01:49]} Bc6 {[%emt 0:00:17]} 35. Rh7 {[%emt 0:05:15]} Kg8 {[%emt 0:00:31]} 36. Rxh6 {[%emt 0:00:07]} Be4 {[%emt 0:00:51]} 37. Rxb6 {[%emt 0:00:20]} Rd8 {[%emt 0:00:09]} 38. Re6 {[%emt 0:00:17]} Bf5 {[%emt 0:00:45]} 39. Re5 {[%emt 0:00:12]} Bd3+ {[%emt 0:00:19]} 40. Kf2 {[%emt 0:00:08]} g4 {[%emt 0:00:04]} 41. Rd5 {[%emt 0:00:07]} Re8 {[%emt 0:00:18]} 42. Rxd3 {[%emt 0:00:08]} g3+ {[%emt 0:00:03]} 43. hxg3 {[%emt 0:00:08]} fxg3+ {[%emt 0:00:05]} 44. Rxg3+ {[%emt 0:00:10]} Kh8 {[%emt 0:00:03]} 45. Rh3+ {[%emt 0:00:10]} Kg8 {[%emt 0:00:05]} 46. Rhh7 {[%emt 0:00:09]} Rf8+ {[%emt 0:00:11]} 47. Kg1 {[%emt 0:00:09]} Rd8 {[%emt 0:00:05]} 48. Rag7+ {[%emt 0:00:05]} Kf8 {[%emt 0:00:06]} 49. Rh8+ {[%emt 0:00:04]} Kxg7 {[%emt 0:00:04]} 50. Rxd8 {[%emt 0:00:04]} Kf6 {[%emt 0:00:07]} 51. Rd5 {[%emt 0:00:04]} 1-0

[Event "2nd Namma Bengaluru Open-A 2025"]
[Site "Bengaluru"]
[Date "2025.04.12"]
[Round "4.11"]
[White "Wagh Suyog"]
[Black "Aronyak Ghosh"]
[Result "1-0"]
[Annotator "ChessBase"]
[ECO "E11"]
[WhiteElo "2289"]
[BlackElo "2525"]
[PlyCount "137"]
[EventDate "2025.04.10"]
[EventType "swiss"]
[EventCountry "IND"]
[SourceTitle "playchess.com"]
[Source "ChessBase"]
[SourceQuality "1"]
[TimeControl "5400+30"]

1. d4 {[%emt 0:00:35]} Nf6 {[%emt 0:01:33]} 2. c4 {[%emt 0:00:04]} e6 {[%emt 0:00:30]} 3. Nf3 {[%emt 0:00:07]} d5 {[%emt 0:00:19]} 4. g3 {[%emt 0:01:43]} Bb4+ {[%emt 0:00:55]} 5. Bd2 {[%emt 0:03:29]} a5 {[%emt 0:01:14]} 6. Bg2 {[%emt 0:04:23]} O-O {[%emt 0:00:28]} 7. Qc2 {[%emt 0:05:27]} Be7 {[%emt 0:00:58]} 8. O-O {[%emt 0:00:09]} c6 {[%emt 0:00:10]} 9. Rd1 {[%emt 0:01:59]} Nbd7 {[%emt 0:02:02]} 10. Bf4 {[%emt 0:02:13]} b6 {[%emt 0:01:20]} 11. Ne5 {[%emt 0:15:44]} Bb7 {[%emt 0:05:51]} 12. Nc3 {[%emt 0:11:55]} Nh5 {[%emt 0:11:21]} 13. Bd2 {[%emt 0:07:28]} Qc7 {[%emt 0:13:03]} 14. Na4 {[%emt 0:10:28]} Nhf6 {[%emt 0:10:02]} 15. Nxd7 {[%emt 0:05:19]} Nxd7 {[%emt 0:00:07]} 16. cxd5 {[%emt 0:03:46]} exd5 {[%emt 0:00:17]} 17. e4 {[%emt 0:00:11]} dxe4 {[%emt 0:03:04]} 18. Bxe4 {[%emt 0:00:04]} Nf6 {[%emt 0:00:16]} 19. Bf4 {[%emt 0:00:38]} Qd8 {[%emt 0:04:09]} 20. Bg2 {[%emt 0:03:19]} Rc8 {[%emt 0:07:27]} 21. Qb3 {[%emt 0:03:59]} b5 {[%emt 0:00:23]} 22. Rac1 {[%emt 0:10:26]} Ba8 {[%emt 0:06:25]} 23. Nc5 {[%emt 0:00:24]} Nd5 {[%emt 0:00:14]} 24. Bxd5 {[%emt 0:02:02]} cxd5 {[%emt 0:04:35]} 25. Qxb5 {[%emt 0:00:11]} Bc6 {[%emt 0:00:20]} 26. Qa6 {[%emt 0:01:03]} Ba8 {[%emt 0:02:24]} 27. Nb3 {[%emt 0:01:34]} Rc4 {[%emt 0:01:08]} 28. Qxa5 {[%emt 0:04:42]} Qd7 {[%emt 0:00:07]} 29. a3 {[%emt 0:00:54]} h5 {[%emt 0:00:51]} 30. Qd2 {[%emt 0:00:18]} h4 {[%emt 0:02:40]} 31. Na5 {[%emt 0:00:18]} Rcc8 {[%emt 0:00:17]} 32. b4 {[%emt 0:01:00]} h3 {[%emt 0:01:18]} 33. Qd3 {[%emt 0:00:17]} Qa4 {[%emt 0:02:21]} 34. Be5 {[%emt 0:00:49]} Bg5 {[%emt 0:00:23]} 35. Bf4 {[%emt 0:00:12]} Bf6 {[%emt 0:00:14]} 36. Be3 {[%emt 0:00:48]} Rce8 {[%emt 0:01:33]} 37. Re1 {[%emt 0:00:17]} Bd8 {[%emt 0:00:41]} 38. Bd2 {[%emt 0:00:39]} Bb6 {[%emt 0:00:34]} 39. f3 {[%emt 0:00:34]} Rc8 {[%emt 0:01:11]} 40. Kf2 {[%emt 0:00:14]} Qd7 {[%emt 0:01:23]} 41. Rxc8 {[%emt 0:00:16]} Rxc8 {[%emt 0:00:06]} 42. Rc1 {[%emt 0:00:05]} Rxc1 {[%emt 0:02:11]} 43. Bxc1 {[%emt 0:00:01]} Bxa5 {[%emt 0:00:04]} 44. bxa5 {[%emt 0:00:02]} Qa4 {[%emt 0:00:05]} 45. g4 {[%emt 0:01:39]} Qxa5 {[%emt 0:01:00]} 46. Bd2 {[%emt 0:00:17]} Qc7 {[%emt 0:01:54]} 47. f4 {[%emt 0:00:08]} Bb7 {[%emt 0:00:36]} 48. Kg3 {[%emt 0:00:37]} Bc8 {[%emt 0:00:56]} 49. Kxh3 {[%emt 0:00:11]} Qd7 {[%emt 0:00:02]} 50. f5 {[%emt 0:00:48]} Qa4 {[%emt 0:00:10]} 51. Bb4 {[%emt 0:00:33]} Ba6 {[%emt 0:00:20]} 52. Qe3 {[%emt 0:00:58]} Qd1 {[%emt 0:00:57]} 53. Kg3 {[%emt 0:00:22]} Kh7 {[%emt 0:00:14]} 54. Bd2 {[%emt 0:00:31]} Qf1 {[%emt 0:01:11]} 55. a4 {[%emt 0:01:06]} Qb1 {[%emt 0:00:57]} 56. a5 {[%emt 0:00:24]} Bd3 {[%emt 0:00:04]} 57. Qe1 {[%emt 0:00:39]} Qa2 {[%emt 0:00:27]} 58. h4 {[%emt 0:00:33]} Be4 {[%emt 0:00:10]} 59. h5 {[%emt 0:00:12]} Qc4 {[%emt 0:01:04]} 60. Qf2 {[%emt 0:00:46]} Qc7+ {[%emt 0:00:11]} 61. Kh4 {[%emt 0:00:30]} f6 {[%emt 0:00:22]} 62. Qf4 {[%emt 0:00:27]} Qc4 {[%emt 0:00:22]} 63. Qf2 {[%emt 0:00:37]} Qd3 {[%emt 0:00:15]} 64. h6 {[%emt 0:00:33]} g5+ {[%emt 0:04:47]} 65. fxg6+ {[%emt 0:00:20]} Kxg6 {[%emt 0:00:01]} 66. Be3 {[%emt 0:01:13]} Qa3 {[%emt 0:00:22]} 67. g5 {[%emt 0:00:00]} fxg5+ {[%emt 0:01:48]} 68. Bxg5 {[%emt 0:00:00]} Bf5 {[%emt 0:00:03]} 69. Qg3 {[%emt 0:00:57]} 1-0

[Event "2nd Namma Bengaluru Open-A 2025"]
[Site "Bengaluru"]
[Date "2025.04.12"]
[Round "4.12"]
[White "Stany, G.A."]
[Black "Nithin Babu"]
[Result "1/2-1/2"]
[Annotator "ChessBase"]
[ECO "C42"]
[WhiteElo "2454"]
[BlackElo "2242"]
[PlyCount "118"]
[EventDate "2025.04.10"]
[EventType "swiss"]
[EventCountry "IND"]
[SourceTitle "playchess.com"]
[Source "ChessBase"]
[SourceQuality "1"]
[TimeControl "5400+30"]

1. e4 {[%emt 0:00:04]} e5 {[%emt 0:02:10]} 2. Nf3 {[%emt 0:00:04]} Nf6 {[%emt 0:00:37]} 3. Nxe5 {[%emt 0:05:23]} d6 {[%emt 0:00:06]} 4. Nf3 {[%emt 0:00:04]} Nxe4 {[%emt 0:00:04]} 5. Nc3 {[%emt 0:05:27]} Nxc3 {[%emt 0:00:09]} 6. dxc3 {[%emt 0:00:04]} Be7 {[%emt 0:00:11]} 7. Be3 {[%emt 0:00:04]} Nd7 {[%emt 0:00:11]} 8. Qd2 {[%emt 0:01:20]} Ne5 {[%emt 0:00:15]} 9. Be2 {[%emt 0:00:55]} O-O {[%emt 0:03:19]} 10. O-O {[%emt 0:02:31]} Be6 {[%emt 0:04:38]} 11. b3 {[%emt 0:00:13]} Bf6 {[%emt 0:17:49]} 12. Rad1 {[%emt 0:00:26]} d5 {[%emt 0:03:28]} 13. Nxe5 {[%emt 0:09:28]} Bxe5 {[%emt 0:00:10]} 14. f4 {[%emt 0:00:02]} Bf6 {[%emt 0:08:39]} 15. f5 {[%emt 0:03:28]} Bd7 {[%emt 0:05:12]} 16. Qxd5 {[%emt 0:02:08]} Qe7 {[%emt 0:07:10]} 17. Qc5 {[%emt 0:06:40]} Rfe8 {[%emt 0:04:41]} 18. Qxe7 {[%emt 0:09:17]} Rxe7 {[%emt 0:00:16]} 19. Bf3 {[%emt 0:00:02]} Rxe3 {[%emt 0:14:31]} 20. Rxd7 {[%emt 0:00:14]} Rxc3 {[%emt 0:02:29]} 21. Bxb7 {[%emt 0:00:11]} Rd8 {[%emt 0:04:21]} 22. Rxd8+ {[%emt 0:14:12]} Bxd8 {[%emt 0:00:02]} 23. Be4 {[%emt 0:00:20]} Be7 {[%emt 0:03:38]} 24. Bd3 {[%emt 0:00:56]} Bc5+ {[%emt 0:02:05]} 25. Kh1 {[%emt 0:00:09]} Kf8 {[%emt 0:02:09]} 26. Re1 {[%emt 0:01:30]} Bd6 {[%emt 0:02:41]} 27. Re4 {[%emt 0:17:34]} Rc5 {[%emt 0:00:24]} 28. Rh4 {[%emt 0:00:53]} h6 {[%emt 0:01:41]} 29. f6 {[%emt 0:04:04]} a5 {[%emt 0:05:04]} 30. g3 {[%emt 0:01:09]} Re5 {[%emt 0:00:58]} 31. Kg2 {[%emt 0:00:22]} Re6 {[%emt 0:00:48]} 32. Ra4 {[%emt 0:01:39]} Re5 {[%emt 0:00:24]} 33. fxg7+ {[%emt 0:02:45]} Kxg7 {[%emt 0:00:02]} 34. Kf3 {[%emt 0:00:33]} Bb4 {[%emt 0:00:49]} 35. a3 {[%emt 0:01:02]} Bd6 {[%emt 0:00:17]} 36. b4 {[%emt 0:00:36]} axb4 {[%emt 0:00:56]} 37. axb4 {[%emt 0:00:03]} Rh5 {[%emt 0:00:48]} 38. h4 {[%emt 0:02:25]} Rd5 {[%emt 0:00:15]} 39. b5 {[%emt 0:01:29]} Re5 {[%emt 0:03:43]} 40. Rg4+ {[%emt 0:02:44]} Kf8 {[%emt 0:00:25]} 41. Rd4 {[%emt 0:01:23]} Bc5 {[%emt 0:00:48]} 42. Rd7 {[%emt 0:01:18]} Bb6 {[%emt 0:01:00]} 43. Bc4 {[%emt 0:01:15]} Re7 {[%emt 0:00:40]} 44. Rd8+ {[%emt 0:00:21]} Kg7 {[%emt 0:00:20]} 45. Bd3 {[%emt 0:00:52]} Re6 {[%emt 0:01:27]} 46. Rd5 {[%emt 0:00:30]} c6 {[%emt 0:00:58]} 47. bxc6 {[%emt 0:00:23]} Rxc6 {[%emt 0:00:02]} 48. g4 {[%emt 0:02:50]} Rc8 {[%emt 0:00:37]} 49. Rd7 {[%emt 0:00:43]} Rc7 {[%emt 0:00:34]} 50. Rd5 {[%emt 0:00:30]} Bc5 {[%emt 0:00:28]} 51. h5 {[%emt 0:00:43]} Be7 {[%emt 0:00:31]} 52. c4 {[%emt 0:01:18]} Rc6 {[%emt 0:00:29]} 53. Rd7 {[%emt 0:00:17]} Kf8 {[%emt 0:00:41]} 54. Rb7 {[%emt 0:00:36]} Rc5 {[%emt 0:00:44]} 55. Ke4 {[%emt 0:00:42]} Bf6 {[%emt 0:00:19]} 56. Ke3 {[%emt 0:01:11]} Rc6 {[%emt 0:00:25]} 57. Be4 {[%emt 0:00:55]} Rxc4 {[%emt 0:00:24]} 58. Rxf7+ {[%emt 0:00:31]} Kxf7 {[%emt 0:00:05]} 59. Bd5+ {[%emt 0:00:02]} Kg7 {[%emt 0:00:05]} 1/2-1/2

[Event "2nd Namma Bengaluru Open-A 2025"]
[Site "Bengaluru"]
[Date "2025.04.12"]
[Round "4.13"]
[White "Sharnarthi Viresh"]
[Black "Goutham Krishna H"]
[Result "0-1"]
[Annotator "ChessBase"]
[ECO "E62"]
[WhiteElo "2232"]
[BlackElo "2449"]
[PlyCount "160"]
[EventDate "2025.04.10"]
[EventType "swiss"]
[EventCountry "IND"]
[SourceTitle "playchess.com"]
[Source "ChessBase"]
[SourceQuality "1"]
[TimeControl "5400+30"]

1. d4 {[%emt 0:00:14]} Nf6 {[%emt 0:00:18]} 2. c4 {[%emt 0:00:25]} g6 {[%emt 0:00:07]} 3. Nc3 {[%emt 0:00:05]} Bg7 {[%emt 0:00:15]} 4. Nf3 {[%emt 0:00:06]} O-O {[%emt 0:00:07]} 5. g3 {[%emt 0:00:03]} d6 {[%emt 0:00:07]} 6. Bg2 {[%emt 0:00:04]} c6 {[%emt 0:00:06]} 7. e4 {[%emt 0:00:49]} Be6 {[%emt 0:00:33]} 8. b3 {[%emt 0:01:26]} Bg4 {[%emt 0:03:55]} 9. h3 {[%emt 0:03:40]} Bxf3 {[%emt 0:00:47]} 10. Bxf3 {[%emt 0:00:12]} Nfd7 {[%emt 0:04:19]} 11. Bb2 {[%emt 0:04:18]} e5 {[%emt 0:17:41]} 12. dxe5 {[%emt 0:10:23]} dxe5 {[%emt 0:00:11]} 13. O-O {[%emt 0:02:39]} Qe7 {[%emt 0:02:13]} 14. Qc1 {[%emt 0:01:38]} Rd8 {[%emt 0:01:52]} 15. Bg2 {[%emt 0:08:05]} a5 {[%emt 0:02:09]} 16. Ba3 {[%emt 0:05:40]} Qe8 {[%emt 0:04:46]} 17. c5 {[%emt 0:05:50]} Bf8 {[%emt 0:02:31]} 18. Na4 {[%emt 0:00:15]} Qe7 {[%emt 0:01:06]} 19. Bb2 {[%emt 0:14:02]} Na6 {[%emt 0:05:28]} 20. Nb6 {[%emt 0:00:02]} Nxb6 {[%emt 0:00:40]} 21. cxb6 {[%emt 0:00:03]} Nb4 {[%emt 0:10:34]} 22. Qb1 {[%emt 0:05:05]} Qc5 {[%emt 0:01:50]} 23. Bc1 {[%emt 0:08:14]} Nc2 {[%emt 0:05:26]} 24. Bg5 {[%emt 0:00:25]} Nxa1 {[%emt 0:00:08]} 25. Qxa1 {[%emt 0:01:12]} Re8 {[%emt 0:01:42]} 26. Be3 {[%emt 0:01:09]} Qb4 {[%emt 0:01:27]} 27. Qc1 {[%emt 0:01:09]} a4 {[%emt 0:01:03]} 28. Qc2 {[%emt 0:08:38]} axb3 {[%emt 0:00:57]} 29. axb3 {[%emt 0:00:03]} Ra3 {[%emt 0:04:01]} 30. Rd1 {[%emt 0:00:58]} Qxb3 {[%emt 0:00:34]} 31. Qe2 {[%emt 0:00:01]} Qa2 {[%emt 0:05:23]} 32. Qg4 {[%emt 0:00:45]} Raa8 {[%emt 0:05:18]} 33. Rd7 {[%emt 0:01:35]} Rab8 {[%emt 0:00:24]} 34. h4 {[%emt 0:00:36]} Qe6 {[%emt 0:00:48]} 35. Qd1 {[%emt 0:00:15]} Be7 {[%emt 0:00:04]} 36. Kh2 {[%emt 0:03:35]} Red8 {[%emt 0:00:26]} 37. Rxd8+ {[%emt 0:00:06]} Rxd8 {[%emt 0:00:01]} 38. Qa4 {[%emt 0:00:02]} Bd6 {[%emt 0:03:12]} 39. Bf1 {[%emt 0:00:51]} Qe7 {[%emt 0:01:02]} 40. Qc4 {[%emt 0:01:57]} Kg7 {[%emt 0:00:50]} 41. h5 {[%emt 0:00:38]} gxh5 {[%emt 0:00:29]} 42. Qe2 {[%emt 0:01:17]} Bc5 {[%emt 0:00:21]} 43. Bc1 {[%emt 0:01:41]} Qf6 {[%emt 0:00:13]} 44. f4 {[%emt 0:00:03]} exf4 {[%emt 0:01:16]} 45. Bxf4 {[%emt 0:00:46]} h4 {[%emt 0:01:06]} 46. Qg2 {[%emt 0:07:38]} Bd6 {[%emt 0:00:51]} 47. Kh1 {[%emt 0:05:22]} Kh8 {[%emt 0:00:44]} 48. Be3 {[%emt 0:00:00]} hxg3 {[%emt 0:00:08]} 49. Kg1 {[%emt 0:00:00]} Be5 {[%emt 0:00:07]} 50. Be2 {[%emt 0:00:24]} Bd4 {[%emt 0:00:08]} 51. Bxd4 {[%emt 0:00:05]} Qxd4+ {[%emt 0:00:05]} 52. Kh1 {[%emt 0:00:05]} Qf2 {[%emt 0:00:24]} 53. Qxf2 {[%emt 0:00:22]} gxf2 {[%emt 0:00:02]} 54. Kg2 {[%emt 0:00:03]} Rd2 {[%emt 0:00:11]} 55. Bc4 {[%emt 0:00:09]} Kg7 {[%emt 0:00:09]} 56. e5 {[%emt 0:00:03]} Rb2 {[%emt 0:00:05]} 57. e6 {[%emt 0:00:09]} fxe6 {[%emt 0:00:04]} 58. Bxe6 {[%emt 0:00:04]} Rxb6 {[%emt 0:00:06]} 59. Kxf2 {[%emt 0:00:03]} Rb4 {[%emt 0:00:11]} 60. Ke3 {[%emt 0:00:12]} c5 {[%emt 0:00:03]} 61. Kd3 {[%emt 0:00:10]} Rd4+ {[%emt 0:00:21]} 62. Kc3 {[%emt 0:00:19]} b5 {[%emt 0:00:14]} 63. Bf5 {[%emt 0:00:12]} h5 {[%emt 0:00:04]} 64. Kb3 {[%emt 0:00:03]} h4 {[%emt 0:00:07]} 65. Kc3 {[%emt 0:00:02]} b4+ {[%emt 0:00:04]} 66. Kb3 {[%emt 0:00:04]} h3 {[%emt 0:00:03]} 67. Bxh3 {[%emt 0:00:03]} Rd3+ {[%emt 0:00:04]} 68. Kc4 {[%emt 0:00:03]} Rxh3 {[%emt 0:00:04]} 69. Kxc5 {[%emt 0:00:05]} b3 {[%emt 0:00:03]} 70. Kc4 {[%emt 0:00:03]} b2 {[%emt 0:00:02]} 71. Kd4 {[%emt 0:00:02]} b1=R 72. Kc4 {[%emt 0:00:08]} Rg1 {[%emt 0:00:13]} 73. Kd5 {[%emt 0:00:02]} Re1 {[%emt 0:00:07]} 74. Kd4 {[%emt 0:00:04]} Kf6 {[%emt 0:00:04]} 75. Kd5 {[%emt 0:00:03]} Rd3+ {[%emt 0:00:03]} 76. Kc4 {[%emt 0:00:03]} Rd8 {[%emt 0:00:07]} 77. Kc3 {[%emt 0:00:03]} Rc1+ {[%emt 0:00:07]} 78. Kb2 {[%emt 0:00:03]} Rc7 {[%emt 0:00:05]} 79. Kb3 {[%emt 0:00:03]} Rb8+ {[%emt 0:00:12]} 80. Ka2 {[%emt 0:00:06]} Ra7# {[%emt 0:00:04]} 0-1

[Event "2nd Namma Bengaluru Open-A 2025"]
[Site "Bengaluru"]
[Date "2025.04.12"]
[Round "4.14"]
[White "Gochelashvili, David"]
[Black "Mehar, Chinna Reddy C.H."]
[Result "1-0"]
[Annotator "ChessBase"]
[ECO "B22"]
[WhiteElo "2227"]
[BlackElo "2418"]
[PlyCount "67"]
[EventDate "2025.04.10"]
[EventType "swiss"]
[EventCountry "IND"]
[SourceTitle "playchess.com"]
[Source "ChessBase"]
[SourceQuality "1"]
[TimeControl "5400+30"]

1. e4 {[%emt 0:00:37]} c5 {[%emt 0:00:33]} 2. c3 {[%emt 0:00:06]} Nf6 {[%emt 0:00:23]} 3. e5 {[%emt 0:00:06]} Nd5 {[%emt 0:00:05]} 4. d4 {[%emt 0:00:06]} cxd4 {[%emt 0:00:16]} 5. cxd4 {[%emt 0:00:04]} d6 {[%emt 0:00:51]} 6. Bc4 {[%emt 0:00:27]} Nb6 {[%emt 0:03:26]} 7. Bb3 {[%emt 0:00:46]} d5 {[%emt 0:00:18]} 8. Bc2 {[%emt 0:02:07]} Nc6 {[%emt 0:00:49]} 9. Nc3 {[%emt 0:00:13]} e6 {[%emt 0:03:33]} 10. f4 {[%emt 0:13:15]} f5 {[%emt 0:02:39]} 11. exf6 {[%emt 0:01:11]} Qxf6 {[%emt 0:00:08]} 12. Nf3 {[%emt 0:00:05]} Bd6 {[%emt 0:01:03]} 13. O-O {[%emt 0:04:14]} O-O {[%emt 0:00:39]} 14. g3 {[%emt 0:22:47]} Bd7 {[%emt 0:04:42]} 15. Qd3 {[%emt 0:00:12]} g6 {[%emt 0:01:54]} 16. a3 {[%emt 0:00:14]} Rac8 {[%emt 0:03:00]} 17. Be3 {[%emt 0:08:28]} Qg7 {[%emt 0:12:56]} 18. b3 {[%emt 0:08:23]} a6 {[%emt 0:02:27]} 19. Ne5 {[%emt 0:10:40]} Nxe5 {[%emt 0:04:42]} 20. fxe5 {[%emt 0:00:05]} Rxf1+ {[%emt 0:00:42]} 21. Rxf1 {[%emt 0:00:49]} Bxa3 {[%emt 0:02:13]} 22. Bg5 {[%emt 0:00:08]} Bb4 {[%emt 0:01:52]} 23. Ne2 {[%emt 0:02:52]} Bb5 {[%emt 0:07:58]} 24. Qd1 {[%emt 0:01:16]} Be7 {[%emt 0:04:38]} 25. Bf6 {[%emt 0:00:57]} Bxf6 {[%emt 0:00:19]} 26. exf6 {[%emt 0:11:24]} Qh6 {[%emt 0:01:57]} 27. Rf3 {[%emt 0:08:25]} Rf8 {[%emt 0:08:50]} 28. Nc3 {[%emt 0:01:36]} Bd7 {[%emt 0:01:15]} 29. Qe1 {[%emt 0:00:46]} Kf7 {[%emt 0:03:31]} 30. Nd1 {[%emt 0:00:57]} Qc1 {[%emt 0:01:08]} 31. Qb4 {[%emt 0:00:05]} Nc8 {[%emt 0:04:42]} 32. Qxb7 {[%emt 0:00:33]} Ke8 {[%emt 0:01:09]} 33. Rc3 {[%emt 0:00:56]} Qd2 {[%emt 0:00:18]} 34. Rxc8+ {[%emt 0:00:10]} 1-0